bitfinex-derivatives/quotes_BTCF0:USTF0_20250506
["timestamp","ask_amount","ask_price","bid_price","bid_amount"]
[1746503971318,0.2457585,94506.0,94505.0,0.09475814]
[1746503973711,0.2457585,94506.0,94505.0,0.30641884]
[1746503977920,0.2457585,94506.0,94505.0,0.66721884]
[1746503979620,0.2457585,94506.0,94505.0,0.30641884]
[1746503979820,0.2457585,94506.0,94505.0,0.66721884]
[1746503981133,0.2457585,94506.0,94505.0,0.45555814]
[1746503982333,0.2457585,94506.0,94505.0,0.66721884]
[1746503991841,0.2457585,94506.0,94505.0,0.30641884]
[1746503992043,0.2457585,94506.0,94505.0,0.66721884]
[1746503999844,0.001,94506.0,94505.0,0.66721884]
[1746504000052,0.2116458,94514.0,94513.0,0.3174469]
[1746504000238,0.2116458,94514.0,94513.0,0.6782469]
[1746504001148,0.2116458,94514.0,94513.0,0.7962469]
[1746504001446,0.2126458,94514.0,94513.0,0.7962469]
[1746504002149,0.2126458,94514.0,94513.0,0.6782469]
[1746504002948,0.2126458,94514.0,94513.0,0.6253381]
[1746504003151,0.2126458,94514.0,94513.0,0.5724295]
[1746504003948,0.2116458,94514.0,94513.0,0.5724295]
[1746504005450,0.2116458,94514.0,94513.0,0.6680295]
[1746504007047,0.2116458,94514.0,94513.0,0.7860295]
[1746504008057,0.2116458,94514.0,94513.0,0.5744]
[1746504009154,0.2116458,94514.0,94513.0,0.4564]
[1746504014753,0.2116458,94514.0,94513.0,0.0956]
[1746504014955,0.2116458,94514.0,94513.0,0.4564]
[1746504015958,0.2116458,94514.0,94513.0,0.425]
[1746504017457,0.2424458,94514.0,94513.0,0.425]
[1746504018247,0.2424458,94514.0,94513.0,0.3608]
[1746504018452,0.2741458,94514.0,94513.0,0.3608]
[1746504022361,0.28508136,94514.0,94513.0,0.3608]
[1746504025560,0.2741458,94514.0,94513.0,0.3608]
[1746504030664,0.2853904,94514.0,94513.0,0.3608]
[1746504031964,0.2116562,94507.0,94506.0,0.3025583]
[1746504032165,0.2116562,94507.0,94506.0,0.6633583]
[1746504032663,0.2116562,94507.0,94506.0,0.4517]
[1746504033366,0.2441562,94507.0,94506.0,0.4517]
[1746504037072,0.2441562,94507.0,94506.0,0.0909]
[1746504037272,0.2441562,94507.0,94506.0,0.4517]
[1746504042571,0.3079962,94507.0,94506.0,0.4212]
[1746504042773,0.3385962,94507.0,94506.0,0.3608]
[1746504042979,0.2116585,94506.0,94505.0,0.00105814]
[1746504043268,0.3498705,94506.0,94505.0,0.00105814]
[1746504043463,0.3800705,94506.0,94505.0,0.00105814]
[1746504044485,0.3800705,94506.0,94505.0,1e-08]
[1746504044671,0.2116853,94494.0,94489.0,0.0327]
[1746504044872,0.2755253,94494.0,94480.0,0.0311]
[1746504045076,0.2755253,94494.0,94489.0,0.0322]
[1746504045376,0.2755253,94494.0,94489.0,0.0935]
[1746504045572,0.3394253,94494.0,94489.0,0.0935]
[1746504057283,0.2755853,94494.0,94489.0,0.0935]
[1746504057583,0.3394253,94494.0,94489.0,0.0935]
[1746504068408,0.3394253,94494.0,94489.0,0.4543]
[1746504072407,0.3063253,94494.0,94489.0,0.4543]
[1746504079818,0.3063253,94494.0,94489.0,0.0935]
[1746504080014,0.3063253,94494.0,94489.0,0.4543]
[1746504095724,0.3063253,94494.0,94489.0,0.0935]
[1746504096118,0.3063253,94494.0,94489.0,0.4543]
[1746504112037,0.3063253,94494.0,94489.0,0.0935]
[1746504112237,0.3063253,94494.0,94489.0,0.4543]
[1746504114440,0.3063253,94494.0,94489.0,0.0935]
[1746504114735,0.3063253,94494.0,94489.0,0.4543]
[1746504119939,0.2116898,94494.0,94493.0,0.2116862]
[1746504120143,0.2116892,94493.0,94492.0,0.2116885]
[1746504120335,0.2116892,94493.0,94492.0,0.4263]
[1746504120642,0.2116892,94493.0,94492.0,0.8879898]
[1746504120836,0.2116892,94493.0,94492.0,0.6379898]
[1746504121039,0.2116892,94493.0,94492.0,0.7438178]
[1746504121238,0.2116892,94493.0,94492.0,0.8618178]
[1746504122939,0.2116892,94493.0,94492.0,1.1118178]
[1746504123841,0.2116892,94493.0,94492.0,0.8618178]
[1746504124242,0.052918,94500.0,94499.0,0.2116697]
[1746504124441,0.2645952,94500.0,94499.0,0.3104697]
[1746504124638,0.2645952,94500.0,94499.0,0.4162897]
[1746504125143,0.2645952,94500.0,94499.0,0.5342897]
[1746504128344,0.2645952,94500.0,94499.0,0.4284697]
[1746504128544,0.2645952,94500.0,94499.0,0.5342897]
[1746504128744,0.0529075,94519.0,94500.0,0.0529174]
[1746504129046,0.3283884,94518.0,94517.0,0.5724338]
[1746504130043,0.3283884,94518.0,94517.0,0.6352338]
[1746504130245,0.3283884,94518.0,94517.0,0.7532338]
[1746504131245,0.2754802,94518.0,94517.0,0.7532338]
[1746504133655,0.3055802,94518.0,94517.0,0.7532338]
[1746504135749,0.3055802,94518.0,94517.0,0.4788]
[1746504135943,0.3384802,94518.0,94517.0,0.4788]
[1746504136143,0.211645,94512.0,94511.0,0.0333]
[1746504136344,0.211654,94508.0,94507.0,0.0305]
[1746504136543,0.211654,94508.0,94507.0,0.0608]
[1746504140554,0.2116562,94507.0,94506.0,0.3608]
[1746504140756,0.2433562,94507.0,94506.0,0.3608]
[1746504150362,0.2116719,94500.0,94499.0,0.0622]
[1746504151360,0.2427719,94500.0,94499.0,0.0622]
[1746504151559,0.2116831,94495.0,94494.0,0.7216]
[1746504152360,0.2116831,94495.0,94494.0,0.8396]
[1746504153055,0.2116831,94495.0,94494.0,0.901]
[1746504154466,0.2116831,94495.0,94494.0,1.1126853]
[1746504156262,0.2116831,94495.0,94494.0,0.9946853]
[1746504157064,0.2116831,94495.0,94494.0,1.1126853]
[1746504161166,0.2116831,94495.0,94494.0,0.9946853]
[1746504162867,0.2116831,94495.0,94494.0,0.783]
[1746504164261,0.2116831,94495.0,94494.0,0.9946853]
[1746504167170,0.2116831,94495.0,94494.0,1.1126853]
[1746504168171,0.2116831,94495.0,94494.0,0.9946853]
[1746504171172,0.2116831,94495.0,94494.0,1.1126853]
[1746504172078,0.2116831,94495.0,94494.0,0.9946853]
[1746504172575,0.2116831,94495.0,94494.0,0.783]
[1746504172876,0.2116831,94495.0,94494.0,0.9946853]
[1746504173175,0.2116831,94495.0,94494.0,1.1126853]
[1746504175070,0.2116831,94495.0,94494.0,0.9946853]
[1746504176475,0.2116831,94495.0,94494.0,0.2730853]
[1746504176675,0.2116831,94495.0,94494.0,0.9946853]
[1746504177173,0.2116831,94495.0,94494.0,0.2730853]
[1746504177374,0.2116831,94495.0,94494.0,0.9946853]
[1746504179075,0.2116831,94495.0,94494.0,1.1126853]
[1746504181079,0.2116831,94495.0,94494.0,0.9946853]
[1746504181274,0.2116831,94495.0,94494.0,0.2730853]
[1746504181578,0.2116831,94495.0,94494.0,0.9946853]
[1746504182177,0.2116831,94495.0,94494.0,1.1126853]
[1746504183176,0.2116831,94495.0,94494.0,0.9946853]
[1746504184074,0.2116831,94495.0,94494.0,1.1126853]
[1746504185083,0.2116831,94495.0,94494.0,0.9946853]
[1746504186181,0.2116831,94495.0,94494.0,1.1126853]
[1746504187077,0.2116831,94495.0,94494.0,0.9946853]
[1746504188486,0.2434831,94495.0,94494.0,0.9946853]
[1746504188979,0.2760831,94495.0,94494.0,0.9946853]
[1746504189186,0.2760831,94495.0,94494.0,0.783]
[1746504189378,0.2760831,94495.0,94494.0,0.9946853]
[1746504200492,0.2442831,94495.0,94494.0,0.9946853]
[1746504205593,0.2442831,94495.0,94494.0,0.7216]
[1746504205804,0.2442831,94495.0,94494.0,0.3608]
[1746504206298,0.2755831,94495.0,94494.0,0.3608]
[1746504214005,0.3394231,94495.0,94494.0,0.3608]
[1746504221908,0.2117122,94482.0,94481.0,0.0971]
[1746504222303,0.2117122,94482.0,94481.0,0.2151]
[1746504222911,0.2117122,94482.0,94481.0,0.2171]
[1746504223513,0.2117122,94482.0,94481.0,0.2191]
[1746504228214,0.2117122,94482.0,94481.0,0.1011]
[1746504233620,0.2117122,94482.0,94481.0,0.3128145]
[1746504237622,0.2117122,94482.0,94481.0,0.1011]
[1746504239224,0.2117122,94482.0,94481.0,0.3128145]
[1746504245028,0.2117122,94482.0,94481.0,0.1011]
[1746504245329,0.2117122,94482.0,94481.0,0.3128145]
[1746504250926,0.2117122,94482.0,94481.0,0.6736145]
[1746504257529,0.2117122,94482.0,94481.0,0.4619]
[1746504259939,0.2117122,94482.0,94481.0,0.6736145]
[1746504261035,0.2117122,94482.0,94481.0,0.4619]
[1746504261343,0.2117122,94482.0,94481.0,0.4297]
[1746504275350,0.2117122,94482.0,94481.0,0.2818013]
[1746504275650,0.2117257,94476.0,94475.0,0.00105848]
[1746504275847,0.8225257,94476.0,94475.0,0.00105848]
[1746504276148,0.92837371,94476.0,94475.0,0.00105848]
[1746504276337,0.68621271,94476.0,94475.0,0.00105848]
[1746504276541,0.75051271,94476.0,94475.0,0.00105848]
[1746504292056,0.6446647,94476.0,94475.0,0.00105848]
[1746504295455,0.2838647,94476.0,94475.0,0.00105848]
[1746504295656,0.6446647,94476.0,94475.0,0.00105848]
[1746504303776,0.6132647,94476.0,94475.0,0.00105848]
[1746504306277,0.6132647,94476.0,94475.0,0.11905848]
[1746504309183,0.6132647,94476.0,94475.0,0.00105848]
[1746504311178,0.6132647,94476.0,94475.0,0.11905848]
[1746504314479,0.6132647,94476.0,94475.0,0.11935848]
[1746504319880,0.6132647,94476.0,94475.0,0.05879828]
[1746504320270,0.6132647,94476.0,94475.0,0.0003]
[1746504321388,0.2117414,94469.0,94468.0,0.0622]
[1746504322188,0.2117414,94469.0,94468.0,0.1802]
[1746504326192,0.2755814,94469.0,94468.0,0.1802]
[1746504330590,0.6363814,94469.0,94468.0,0.1802]
[1746504338399,0.6691814,94469.0,94468.0,0.1802]
[1746504350304,0.6053414,94469.0,94468.0,0.1802]
[1746504350597,0.6691814,94469.0,94468.0,0.1802]
[1746504358608,0.0529426,94456.0,94449.0,0.3608]
[1746504358902,0.211784,94450.0,94449.0,0.3608]
[1746504359102,0.211784,94450.0,94449.0,0.4788]
[1746504359701,0.211784,94450.0,94449.0,0.4828]
[1746504359901,0.211784,94450.0,94449.0,0.4868]
[1746504360308,0.211784,94450.0,94449.0,0.4828]
[1746504360514,0.211784,94450.0,94449.0,0.4868]
[1746504361202,0.211784,94450.0,94449.0,0.4828]
[1746504361404,0.211784,94450.0,94449.0,0.4868]
[1746504366213,0.211784,94450.0,94449.0,0.592676]
[1746504366509,0.06384,94467.0,94452.0,0.0529446]
[1746504366703,0.2755878,94467.0,94466.0,0.5725481]
[1746504366901,0.2117478,94467.0,94466.0,0.3608]
[1746504367096,0.2117478,94467.0,94466.0,2.08465599]
[1746504367309,0.2117478,94467.0,94466.0,2.29640409]
[1746504368211,0.2117478,94467.0,94466.0,2.36170409]
[1746504369512,0.2117478,94467.0,94466.0,2.37225118]
[1746504374716,0.2117478,94467.0,94466.0,2.26639519]
[1746504374915,0.2117478,94467.0,94466.0,2.37225118]
[1746504376911,0.2117478,94467.0,94466.0,2.36170409]
[1746504380712,0.2117478,94467.0,94466.0,2.2558481]
[1746504380914,0.2117478,94467.0,94466.0,2.36170409]
[1746504383420,0.2117478,94467.0,94466.0,2.2558481]
[1746504383623,0.2117478,94467.0,94466.0,2.36170409]
[1746504386023,0.2117478,94467.0,94466.0,2.2558481]
[1746504386915,0.2449478,94467.0,94466.0,2.2558481]
[1746504389327,0.2759478,94467.0,94466.0,2.2558481]
[1746504430951,0.2759478,94467.0,94466.0,2.1915481]
[1746504431253,0.2759478,94467.0,94466.0,2.0735481]
[1746504432646,0.2759478,94467.0,94466.0,0.5735481]
[1746504436258,0.2759478,94467.0,94466.0,2.1363481]
[1746504437150,0.2759478,94467.0,94466.0,2.2543481]
[1746504438963,0.2759478,94467.0,94466.0,2.2228481]
[1746504439258,0.2759478,94467.0,94466.0,2.1048481]
[1746504442058,0.2759478,94467.0,94466.0,2.2228481]
[1746504442259,0.2759478,94467.0,94466.0,2.2558481]
[1746504445159,0.2759478,94467.0,94466.0,2.1378481]
[1746504445362,0.2759478,94467.0,94466.0,2.1048481]
[1746504450965,0.2759478,94467.0,94466.0,2.1367481]
[1746504472075,0.2759478,94467.0,94466.0,2.2547481]
[1746504473178,0.2759478,94467.0,94466.0,2.1367481]
[1746504476188,0.2759478,94467.0,94466.0,2.2547481]
[1746504478183,0.2759478,94467.0,94466.0,2.1367481]
[1746504480081,0.2759478,94467.0,94466.0,2.2547481]
[1746504482084,0.0529283,94482.0,94479.0,0.211719]
[1746504482385,0.0319,94481.0,94480.0,0.2117167]
[1746504482582,0.2132071,94485.0,94484.0,0.2117078]
[1746504483188,0.0015,94485.0,94484.0,0.3297078]
[1746504484586,0.0035,94485.0,94484.0,0.3297078]
[1746504485093,0.2152055,94485.0,94484.0,0.3297078]
[1746504485397,0.2481055,94485.0,94484.0,0.3297078]
[1746504488390,0.0364,94485.0,94484.0,0.3297078]
[1746504497721,0.0344,94485.0,94484.0,0.3297078]
[1746504497911,0.0354,94485.0,94484.0,0.3297078]
[1746504498113,0.0344,94485.0,94484.0,0.3297078]
[1746504498620,0.0334,94485.0,94484.0,0.3297078]
[1746504498821,0.0344,94485.0,94484.0,0.3297078]
[1746504501017,0.0344,94485.0,94484.0,0.6905078]
[1746504503125,0.2461055,94485.0,94484.0,0.6905078]
[1746504503424,0.2461055,94485.0,94484.0,0.4788]
[1746504503620,0.2461055,94485.0,94484.0,0.118]
[1746504504019,0.6019415,94485.0,94484.0,0.118]
[1746504504219,0.6019415,94485.0,94476.0,0.3608]
[1746504504220,0.2117234,94477.0,94476.0,0.5725257]
[1746504505326,0.2754234,94477.0,94476.0,0.5725257]
[1746504505524,0.2754234,94477.0,94476.0,0.5735257]
[1746504506826,0.2774234,94477.0,94476.0,0.5735257]
[1746504507021,0.2774234,94477.0,94476.0,0.5725257]
[1746504507326,0.2784234,94477.0,94476.0,0.5725257]
[1746504508229,0.2784234,94477.0,94476.0,0.3608]
[1746504509131,0.3964234,94477.0,94476.0,0.5725257]
[1746504509320,0.3964234,94477.0,94476.0,0.3608]
[1746504511927,0.2117324,94473.0,94472.0,0.2117335]
[1746504513030,0.2754324,94473.0,94472.0,0.2117335]
[1746504526144,0.2754324,94473.0,94472.0,0.2428335]
[1746504530945,0.2754324,94473.0,94472.0,0.2729335]
[1746504535653,0.2127324,94473.0,94472.0,0.2729335]
[1746504536150,0.2127324,94473.0,94472.0,0.4212335]
[1746504539954,0.2127324,94473.0,94472.0,0.3909335]
[1746504540647,0.2432324,94473.0,94472.0,0.3909335]
[1746504541955,0.2432324,94473.0,94472.0,0.7517335]
[1746504545161,0.2432324,94473.0,94472.0,0.3909335]
[1746504545455,0.2432324,94473.0,94472.0,0.7517335]
[1746504546056,0.2432324,94473.0,94472.0,0.3909335]
[1746504546357,0.2432324,94473.0,94472.0,0.7517335]
[1746504550357,0.2432324,94473.0,94472.0,0.7206335]
[1746504550658,0.2432324,94473.0,94472.0,0.7206346]
[1746504550862,0.2432324,94473.0,94472.0,0.5089]
[1746504551060,0.2432324,94473.0,94472.0,0.3909]
[1746504551763,0.2432324,94473.0,94472.0,0.6026346]
[1746504552854,0.2432324,94473.0,94472.0,0.3909]
[1746504553055,0.2432324,94473.0,94472.0,0.6026346]
[1746504561558,0.2432324,94473.0,94472.0,0.3909]
[1746504564262,0.2117571,94462.0,94456.0,0.01046561]
[1746504564469,0.211766,94458.0,94457.0,0.0319]
[1746504564669,0.2117683,94457.0,94456.0,0.01046561]
[1746504564967,0.2449683,94457.0,94456.0,0.01046561]
[1746504565168,0.2117728,94455.0,94454.0,0.3608]
[1746504565670,0.2097728,94455.0,94454.0,0.3608]
[1746504565863,0.2406728,94455.0,94454.0,0.3608]
[1746504566166,0.2386728,94455.0,94454.0,0.4788]
[1746504566366,0.2386728,94455.0,94454.0,0.4818]
[1746504566558,0.2386728,94455.0,94454.0,0.121]
[1746504566966,0.2386728,94455.0,94454.0,0.124]
[1746504567165,0.2386728,94455.0,94454.0,0.006]
[1746504568670,0.2714728,94455.0,94454.0,0.006]
[1746504570056,0.37734481,94455.0,94454.0,0.006]
[1746504575069,0.37734481,94455.0,94454.0,0.124]
[1746504576274,0.37734481,94455.0,94454.0,0.006]
[1746504582181,0.2714728,94455.0,94454.0,0.124]
[1746504584183,0.2714728,94455.0,94454.0,0.006]
[1746504585177,0.2714728,94455.0,94454.0,0.124]
[1746504591778,0.0529498,94444.0,94427.0,0.3608]
[1746504591975,0.0529465,94449.0,94437.0,0.0301]
[1746504591976,0.2118109,94438.0,94437.0,0.0301]
[1746504592175,0.2118109,94438.0,94437.0,0.1481]
[1746504592882,0.2421109,94438.0,94437.0,0.1481]
[1746504593882,0.2421109,94438.0,94437.0,0.1591]
[1746504594886,0.2421109,94438.0,94437.0,0.1541]
[1746504595087,0.2421109,94438.0,94437.0,0.1551]
[1746504595989,0.2421109,94438.0,94437.0,0.1491]
[1746504597073,0.2421109,94438.0,94437.0,0.119]
[1746504597279,0.6029109,94438.0,94437.0,0.119]
[1746504598189,0.6029109,94438.0,94437.0,0.001]
[1746504603893,0.6069109,94438.0,94437.0,0.001]
[1746504604498,0.2118198,94434.0,94433.0,0.0608]
[1746504605192,0.2118198,94434.0,94433.0,0.1788]
[1746504605392,0.2758198,94434.0,94433.0,0.1788]
[1746504605583,0.2788198,94434.0,94433.0,0.1788]
[1746504606394,0.2818198,94434.0,94433.0,0.1788]
[1746504609094,0.2818198,94434.0,94433.0,0.1487]
[1746504610094,0.2118311,94429.0,94428.0,0.0331]
[1746504610397,0.2118602,94416.0,94415.0,0.00105915]
[1746504610697,0.2756202,94416.0,94415.0,0.00105915]
[1746504611301,0.3385202,94416.0,94415.0,0.00105915]
[1746504612799,0.3415202,94416.0,94415.0,0.00105915]
[1746504613098,0.3445202,94416.0,94415.0,0.11905915]
[1746504621514,0.2492602,94416.0,94415.0,0.11905915]
[1746504621707,0.2178602,94416.0,94415.0,0.11905915]
[1746504621904,0.2816202,94416.0,94415.0,0.33092165]
[1746504622919,0.2178602,94416.0,94415.0,0.39492165]
[1746504623715,0.006,94416.0,94415.0,0.75083765]
[1746504624019,0.2178602,94416.0,94415.0,0.75083765]
[1746504624720,0.2178602,94416.0,94415.0,0.50083765]
[1746504627623,0.2178602,94416.0,94415.0,0.86163765]
[1746504630423,0.2178602,94416.0,94415.0,2.36163765]
[1746504634023,0.2178602,94416.0,94415.0,2.25572165]
[1746504634227,0.2178602,94416.0,94415.0,0.75572165]
[1746504636136,0.2178602,94416.0,94415.0,0.39492165]
[1746504636328,0.2178602,94416.0,94415.0,0.75572165]
[1746504640032,0.006,94416.0,94415.0,0.75572165]
[1746504640425,0.2178602,94416.0,94415.0,0.75572165]
[1746504642028,0.2178602,94416.0,94415.0,0.39492165]
[1746504642229,0.006,94416.0,94415.0,0.75572165]
[1746504642434,0.0529583,94428.0,94427.0,0.2118333]
[1746504642727,0.0529583,94428.0,94427.0,0.5726333]
[1746504643133,0.0529583,94428.0,94427.0,0.6906333]
[1746504643639,0.0579583,94428.0,94427.0,0.6906333]
[1746504643837,0.0957583,94428.0,94427.0,0.6906333]
[1746504644340,0.307601,94428.0,94427.0,0.6906333]
[1746504645528,0.337701,94428.0,94427.0,0.6906333]
[1746504647438,0.2847427,94428.0,94427.0,0.6906333]
[1746504649937,0.0401,94428.0,94427.0,0.6906333]
[1746504650236,0.3285941,94444.0,94443.0,0.2117997]
[1746504650435,0.2756444,94444.0,94443.0,0.2117997]
[1746504651340,0.2756444,94444.0,94443.0,0.3297997]
[1746504652434,0.2796444,94444.0,94443.0,0.3297997]
[1746504653042,0.3126444,94444.0,94443.0,0.3297997]
[1746504655139,0.3106444,94444.0,94443.0,0.3297997]
[1746504655349,0.3116444,94444.0,94443.0,0.3297997]
[1746504655849,0.2478044,94444.0,94443.0,0.3297997]
[1746504656446,0.2468044,94444.0,94443.0,0.3297997]
[1746504656645,0.2796044,94444.0,94443.0,0.3297997]
[1746504665045,0.2796044,94444.0,94443.0,0.118]
[1746504666948,0.2796044,94444.0,94443.0,0.4788]
[1746504667257,0.2796044,94444.0,94443.0,0.118]
[1746504668246,0.2118154,94436.0,94435.0,0.2118175]
[1746504668954,0.2118198,94434.0,94433.0,0.2647765]
[1746504669348,0.2118243,94432.0,94431.0,0.3608]
[1746504669957,0.3068643,94432.0,94431.0,0.3608]
[1746504670156,0.3068643,94432.0,94431.0,0.4788]
[1746504670357,0.3058643,94432.0,94431.0,0.4788]
[1746504670954,0.3078643,94432.0,94431.0,0.6906266]
[1746504672158,0.3078643,94432.0,94431.0,0.7231266]
[1746504672551,0.3098643,94432.0,94431.0,0.7231266]
[1746504673464,0.2786643,94432.0,94431.0,0.7231266]
[1746504683169,0.06784,94432.0,94431.0,0.7231266]
[1746504684065,0.004,94432.0,94431.0,0.7231266]
[1746504685271,0.004,94432.0,94431.0,2.2231266]
[1746504690076,0.002,94432.0,94431.0,2.2241266]
[1746504690574,0.0312,94433.0,94432.0,0.2118243]
[1746504690973,0.0312,94433.0,94432.0,0.2743243]
[1746504691174,0.0312,94433.0,94432.0,0.3923243]
[1746504693375,0.2118118,94443.0,94442.0,0.2117929]
[1746504693579,0.2647632,94443.0,94442.0,0.2117929]
[1746504694077,0.2962632,94443.0,94442.0,0.2445929]
[1746504694375,0.2962632,94443.0,94442.0,0.3625929]
[1746504694563,0.2982632,94443.0,94442.0,0.3625929]
[1746504694771,0.3310632,94443.0,94442.0,0.3940929]
[1746504695379,0.2781118,94443.0,94442.0,0.3940929]
[1746504695970,0.2801118,94443.0,94442.0,0.3940929]
[1746504697977,0.2801118,94443.0,94442.0,0.3297929]
[1746504698477,0.2801118,94443.0,94442.0,0.3601929]
[1746504702382,0.2801118,94443.0,94442.0,0.3297929]
[1746504706086,0.2801118,94443.0,94442.0,0.6905929]
[1746504706987,0.2801118,94443.0,94442.0,0.3297929]
[1746504707288,0.2801118,94443.0,94442.0,0.6905929]
[1746504709891,0.0368,94443.0,94442.0,0.6905929]
[1746504710087,0.0368,94443.0,94442.0,0.7535929]
[1746504710489,0.2485997,94443.0,94442.0,0.7535929]
[1746504711195,0.0368,94443.0,94442.0,0.7535929]
[1746504711897,0.2485997,94443.0,94442.0,0.7535929]
[1746504718202,0.2465997,94443.0,94442.0,0.7535929]
[1746504719104,0.2445997,94443.0,94442.0,0.7535929]
[1746504719695,0.2455997,94443.0,94442.0,0.6905929]
[1746504719903,0.2465997,94443.0,94442.0,0.6905929]
[1746504720094,0.2455997,94443.0,94442.0,0.6905929]
[1746504720295,0.2465997,94443.0,94442.0,0.6905929]
[1746504720704,0.2455997,94443.0,94442.0,0.6905929]
[1746504720906,0.2465997,94443.0,94442.0,0.6905929]
[1746504721108,0.2465997,94443.0,94442.0,0.7223929]
[1746504722403,0.2445997,94443.0,94442.0,0.4788]
[1746504722598,0.2465997,94443.0,94442.0,0.4788]
[1746504723503,0.2485997,94443.0,94442.0,0.6906019]
[1746504725201,0.2465997,94443.0,94442.0,0.6906019]
[1746504725509,0.2485997,94443.0,94442.0,0.6906019]
[1746504728508,0.2485997,94443.0,94442.0,0.3298019]
[1746504732410,0.2485997,94443.0,94442.0,0.118]
[1746504734905,0.2485997,94443.0,94442.0,0.3298019]
[1746504747120,0.2485997,94443.0,94442.0,0.3620019]
[1746504750623,0.0368,94443.0,94442.0,0.3620019]
[1746504750827,0.004,94443.0,94442.0,0.3620019]
[1746504751126,0.2157997,94443.0,94442.0,0.3620019]
[1746504753517,0.004,94443.0,94442.0,0.3620019]
[1746504753722,0.2157997,94443.0,94442.0,0.3620019]
[1746504756027,0.0015,94450.0,94449.0,0.2117862]
[1746504756223,0.0015,94450.0,94449.0,0.5725862]
[1746504756827,0.0015,94450.0,94449.0,2.1784622]
[1746504757026,0.1162377,94465.0,94464.0,0.2117526]
[1746504757027,0.2117517,94465.0,94464.0,0.2117526]
[1746504757226,0.2117517,94465.0,94464.0,0.58320696]
[1746504758115,0.2137517,94465.0,94464.0,0.70120696]
[1746504758727,0.2137517,94465.0,94464.0,0.76520696]
[1746504759431,0.002,94465.0,94464.0,0.76520696]
[1746504760133,0.2117466,94467.0,94466.0,0.2117481]
[1746504761135,0.2117466,94467.0,94466.0,0.3297481]
[1746504763530,0.0308,94468.0,94467.0,0.2117458]
[1746504763734,0.0308,94468.0,94467.0,0.2775458]
[1746504764335,0.0308,94468.0,94467.0,0.3955458]
[1746504764627,0.03,94475.0,94470.0,0.2117391]
[1746504765135,0.03,94475.0,94474.0,0.2117302]
[1746504765330,0.03,94475.0,94474.0,0.5725302]
[1746504766133,0.03,94475.0,94474.0,0.6905302]
[1746504766337,0.0621,94475.0,94474.0,0.7232302]
[1746504768032,0.0621,94475.0,94474.0,0.7242302]
[1746504768230,0.0321,94475.0,94474.0,0.7252302]
[1746504769128,0.0321,94475.0,94474.0,0.6072302]
[1746504769728,0.0321,94475.0,94474.0,0.6052302]
[1746504769929,0.0321,94475.0,94474.0,0.6062302]
[1746504770120,0.0321,94475.0,94474.0,0.7242302]
[1746504772137,0.0321,94475.0,94474.0,2.2242302]
[1746504773240,0.0321,94475.0,94474.0,2.1062302]
[1746504777836,0.065,94475.0,94474.0,2.1062302]
[1746504783236,0.2767279,94475.0,94474.0,2.1062302]
[1746504783435,0.065,94475.0,94474.0,2.1062302]
[1746504783644,0.065,94475.0,94474.0,2.0735302]
[1746504784236,0.065,94475.0,94474.0,2.0725302]
[1746504784938,0.2767279,94475.0,94474.0,2.0725302]
[1746504785339,0.065,94475.0,94474.0,2.0725302]
[1746504789834,0.2767279,94475.0,94474.0,2.0725302]
[1746504792740,0.2767279,94475.0,94474.0,0.5725302]
[1746504793240,0.065,94475.0,94474.0,0.5725302]
[1746504794848,0.2767279,94475.0,94474.0,0.5725302]
[1746504800949,0.065,94475.0,94474.0,0.5725302]
[1746504801146,0.0321,94475.0,94474.0,0.6051302]
[1746504801851,0.2762279,94475.0,94474.0,0.6051302]
[1746504803349,0.0645,94475.0,94474.0,0.6051302]
[1746504803845,0.3079279,94475.0,94474.0,0.6051302]
[1746504805250,0.3079279,94475.0,94474.0,0.3608]
[1746504805445,0.3079279,94475.0,94474.0,0.5725302]
[1746504806352,0.4259279,94475.0,94474.0,0.5725302]
[1746504810541,0.4259279,94475.0,94474.0,0.3608]
[1746504815258,0.4259279,94475.0,94474.0,0.5725302]
[1746504816458,0.4259279,94475.0,94474.0,0.3608]
[1746504817953,0.2117503,94466.0,94465.0,0.2117484]
[1746504818154,0.3297503,94466.0,94465.0,0.2117484]
[1746504818355,0.4223503,94466.0,94465.0,0.2117484]
[1746504819366,0.4223503,94466.0,94465.0,0.2127484]
[1746504820262,0.4223503,94466.0,94465.0,0.2137484]
[1746504821163,0.4223503,94466.0,94465.0,0.2127484]
[1746504821463,0.4223503,94466.0,94465.0,0.2117484]
[1746504824765,0.4223503,94466.0,94465.0,0.2449484]
[1746504824961,0.4223503,94466.0,94465.0,0.2750484]
[1746504825161,0.3043503,94466.0,94465.0,0.2750484]
[1746504826063,0.4223503,94466.0,94465.0,0.2750484]
[1746504828258,0.3043503,94466.0,94465.0,0.2750484]
[1746504829064,0.4223503,94466.0,94465.0,0.2750484]
[1746504831068,0.3043503,94466.0,94465.0,0.2750484]
[1746504832170,0.3043503,94466.0,94465.0,0.6358484]
[1746504839672,0.3043503,94466.0,94465.0,0.2750484]
[1746504847078,0.3043503,94466.0,94465.0,0.2449484]
[1746504847279,0.3043503,94466.0,94465.0,0.2117484]
[1746504847778,0.2117503,94465.0,94464.0,0.3608]
[1746504847977,0.211766,94458.0,94457.0,0.0318]
[1746504848171,0.2117728,94456.0,94455.0,0.052943]
[1746504848678,0.2754728,94456.0,94455.0,0.052943]
[1746504848875,0.2754728,94456.0,94455.0,0.084743]
[1746504849077,0.2754728,94456.0,94455.0,0.2435728]
[1746504849582,0.2754728,94456.0,94455.0,0.2117728]
[1746504849876,0.211775,94454.0,94453.0,0.3608]
[1746504850676,0.209775,94454.0,94453.0,0.3608]
[1746504851089,0.327775,94454.0,94453.0,0.3628]
[1746504851383,0.327775,94454.0,94453.0,0.3648]
[1746504857783,0.327775,94454.0,94453.0,0.004]
[1746504861185,0.209775,94454.0,94453.0,0.004]
[1746504861385,0.209775,94454.0,94453.0,0.2157772]
[1746504861683,0.209775,94454.0,94453.0,0.004]
[1746504862079,0.209775,94454.0,94453.0,0.037]
[1746504864287,0.209775,94454.0,94453.0,0.004]
[1746504872278,0.209775,94454.0,94453.0,0.0358]
[1746504877584,0.209775,94454.0,94453.0,0.2475772]
[1746504877784,0.2647075,94460.0,94459.0,0.2117615]
[1746504878087,0.2647075,94460.0,94459.0,0.5725615]
[1746504878287,0.2953075,94460.0,94459.0,0.5725615]
[1746504878994,0.2953075,94460.0,94459.0,0.5735615]
[1746504879191,0.3482494,94460.0,94459.0,0.5735615]
[1746504879696,0.3482494,94460.0,94459.0,0.6066615]
[1746504883399,0.3482494,94460.0,94459.0,0.3949]
[1746504884903,0.3787494,94460.0,94459.0,0.3949]
[1746504889290,0.3787494,94460.0,94459.0,0.0341]
[1746504891399,0.4118494,94460.0,94459.0,0.0341]
[1746504903099,0.4118494,94460.0,94459.0,0.065]